fUSD/lending_fUSD_20250820
["ID","MTS","AMOUNT","RATE_DAILY","PERIOD"]
[380339538,1755696657817,-3000.0,0.00018356,2]
[380339539,1755696657827,-151.0,0.00018356,2]
[380339540,1755696657835,-151.0,0.00018356,2]
[380339541,1755696657844,-151.0,0.00018356,2]
[380339542,1755696657853,-151.0,0.00018356,2]
[380339543,1755696657862,-151.0,0.00018356,2]
[380339544,1755696657871,-151.0,0.00018356,2]
[380339545,1755696657881,-151.0,0.00018356,2]
[380339546,1755696657890,-151.0,0.00018356,2]
[380339547,1755696657900,-151.0,0.00018356,2]
[380339548,1755696657910,-151.0,0.00018356,2]
[380339549,1755696657921,-153.517764,0.00018356,2]
[380339550,1755696657931,-151.0,0.00018356,2]
[380339551,1755696657940,-203.357685,0.00018356,2]
[380339552,1755696657949,-151.0,0.00018356,2]
[380339553,1755696657958,-151.0,0.00018356,2]
[380339554,1755696657967,-301.828441,0.00018356,2]
[380339555,1755696657978,-151.0,0.00018356,2]
[380339556,1755696657991,-189.666131,0.00018356,2]
[380339557,1755696658002,-189.666131,0.00018356,2]
[380339558,1755696658011,-189.666131,0.00018356,2]
[380339559,1755696658021,-189.666131,0.00018356,2]
[380339560,1755696658030,-151.26703,0.00018356,2]
[380339561,1755696658040,-329.066521,0.00018356,2]
[380339562,1755696658050,-329.066521,0.00018356,2]
[380339563,1755696658059,-329.066521,0.00018356,2]
[380339564,1755696658068,-329.066519,0.00018356,2]
[380339565,1755696658079,-1007.9,0.00018356,2]
[380339566,1755696658088,-25236.67792458,0.00018356,2]
[380339567,1755696661475,-151.0,0.000178,2]
[380339568,1755696661501,-3462.2,0.00018356,2]
[380339569,1755696661516,-1220.90728185,0.00018356,2]
[380339570,1755696661528,-2149.93729945,0.00018356,2]
[380339571,1755696661548,-173.839743,0.00018,2]
[380339572,1755696661557,-510.57287418,0.00018356,2]
[380339573,1755696661764,-173.839743,0.0001777,2]
[380339574,1755696661775,-277.749347,0.0001777,2]
[380339575,1755696661784,-151.0,0.0001777,2]
[380339576,1755696661794,-108.29737962,0.00017799,2]
[380339577,1755696661805,-169.45196738,0.00017799,2]
[380339578,1755696661814,-173.839743,0.000178,2]
[380339579,1755696661824,-173.839743,0.000178,2]
[380339580,1755696661834,-51.52027394,0.000178,2]
[380339581,1755696661845,-99.47972606,0.000178,2]
[380339582,1755696661855,-277.749347,0.000178,2]
[380339583,1755696661866,-300.717446,0.000178,2]
[380339584,1755696661875,-151.0,0.00018,2]
[380339585,1755696661885,-134.17155476,0.00018,2]
[380339586,1755696661896,-16.82844524,0.00018,2]
[380339587,1755696661905,-173.839743,0.00018,2]
[380339588,1755696661915,-68.10181176,0.00018,2]
[380339589,1755696661927,-105.73794024,0.00018,2]
[380339590,1755696661937,-277.749347,0.00018,2]
[380339591,1755696661947,-2642.01271276,0.00018356,2]
[380339592,1755696662133,-466.20761225,0.00014195,2]
[380339593,1755696662145,-689.81238784,0.00014195,2]
[380339594,1755696662155,-151.0,0.0001777,2]
[380339595,1755696662164,-277.749347,0.0001777,2]
[380339596,1755696662173,-277.749347,0.0001777,2]
[380339597,1755696662183,-151.0,0.0001777,2]
[380339598,1755696662193,-151.0,0.00017799,2]
[380339599,1755696662202,-277.749347,0.00017799,2]
[380339600,1755696662212,-277.749347,0.00017799,2]
[380339601,1755696662221,-151.0,0.00017799,2]
[380339602,1755696662231,-151.0,0.000178,2]
[380339603,1755696662244,-277.749347,0.000178,2]
[380339604,1755696662254,-277.749347,0.000178,2]
[380339605,1755696662264,-277.749347,0.00018,2]
[380339606,1755696662274,-277.749347,0.00018,2]
[380339607,1755696662284,-140.27183616,0.00018,2]
[380339608,1755696662299,-137.47751084,0.00018,2]
[380339609,1755696662310,-1737.78665536,0.00018356,2]
[380339610,1755696662322,-49434.07525182,0.00018356,2]
[380339611,1755696662331,-150.0,0.000184,2]
[380339612,1755696662341,-150.0,0.00018444,2]
[380339613,1755696662351,-150.0,0.00018462,2]
[380339614,1755696662360,-157.05963202,0.00018466,7]
[380339615,1755696662369,-4491.0,0.00018475,2]
[380339616,1755696662378,-5742.86511616,0.000185,2]
[380339617,1755696662390,-1870.55,0.000185,2]
[380339618,1755696662421,-151.0,0.000178,2]
[380339619,1755696662431,-277.749347,0.00018,2]
[380339620,1755696662440,-85.390653,0.000185,2]
[380339621,1755696662659,-277.749347,0.0001777,2]
[380339622,1755696662673,-83.65194103,0.00017799,2]
[380339623,1755696662686,-194.09740597,0.00017799,2]
[380339624,1755696662695,-57720.90259403,0.000178,2]
[380339625,1755696662706,-3331.65689396,0.000178,2]
[380339626,1755696662721,-284024.99999999,0.000178,2]
[380339629,1755696700926,2940.0,0.00024658,120]
[380339638,1755697607782,2000.0,0.00024657,120]
[380339639,1755697625282,-220.0,0.0002466,120]
[380339640,1755697625328,-497.0366385,0.000249,120]
[380339641,1755697625379,-173.34,0.00024905,120]
[380339642,1755697625430,-1000.0,0.00024932,120]
[380339643,1755697625479,-200.0,0.00025,120]
[380339644,1755697625533,-700.0,0.00025,120]
[380339645,1755697625581,-211.55098587,0.00025,120]
[380339646,1755697625626,-1000.0,0.00025205,120]
[380339647,1755697625671,-1000.0,0.00025479,120]
[380339648,1755697625715,-1000.0,0.00025753,120]
[380339649,1755697625762,-700.0,0.00026,120]
[380339650,1755697625808,-5300.71128997,0.00026,120]
[380339651,1755697625856,-1000.0,0.00026027,120]
[380339652,1755697625905,-166.0,0.00026027,120]
[380339653,1755697625950,-500.0,0.00026071,120]
[380339654,1755697625999,-521.864436,0.00026157,120]
[380339655,1755697626046,-1000.0,0.00026301,120]
[380339656,1755697626099,-1000.0,0.00026575,120]
[380339657,1755697626146,-1000.0,0.00026849,120]
[380339658,1755697626190,-303.45167237,0.00026851,120]
[380339659,1755697626234,-150.5,0.0002697,120]
[380339660,1755697626282,-150.5,0.0002697,120]
[380339661,1755697626326,-150.5,0.0002698,120]
[380339662,1755697626371,-150.5,0.0002698,120]
[380339663,1755697626416,-150.5,0.0002699,120]
[380339664,1755697626462,-150.5,0.0002699,120]
[380339665,1755697626517,-190.46,0.0002699,120]
[380339666,1755697626571,-700.0,0.00027,120]
[380339667,1755697626615,-1000.0,0.00027123,120]
[380339668,1755697626660,-1000.0,0.00027397,120]
[380339669,1755697691056,277.0,0.00027397,120]
[380339671,1755697717568,155.0,0.00027397,120]
[380339672,1755697724235,4000.0,0.00027,120]
[380339777,1755697834485,-1639.41,0.00011,2]
[380339778,1755697834495,-18.03038795,0.000121,2]
[380339779,1755697834507,-281.96961205,0.000121,2]
[380339780,1755697834517,-18.5701911,0.000121,2]
[380339781,1755697834537,-231.4298089,0.000121,2]
[380339782,1755697834546,-426.8201911,0.00013599,2]
[380339783,1755697834593,-1130.5,0.00013599,2]
[380339784,1755697834617,-1368.7879089,0.00013599,2]
[380339785,1755697834627,-843.97594471,0.00013648,2]
[380339786,1755697834636,-212.04014818,0.00013691,2]
[380339787,1755697834646,-458.46930693,0.00013691,2]
[380339788,1755697834656,-1200.0,0.00013697,2]
[380339789,1755697834665,-150.0,0.00013698,2]
[380339790,1755697834674,-300.0,0.00013698,2]
[380339791,1755697834684,-300.0,0.00013698,2]
[380339792,1755697834696,-300.0,0.00013698,2]
[380339793,1755697834706,-900.0,0.00013699,2]
[380339794,1755697834716,-900.0,0.00013699,2]
[380339795,1755697834725,-900.0,0.00013699,2]
[380339796,1755697834735,-900.0,0.00013699,2]
[380339797,1755697834745,-900.0,0.00013699,2]
[380339798,1755697834755,-900.0,0.00013699,2]
[380339799,1755697834764,-900.0,0.00013699,2]
[380339800,1755697834774,-900.0,0.00013699,2]
[380339801,1755697834783,-900.0,0.00013699,2]
[380339802,1755697834793,-900.0,0.00013699,2]
[380339803,1755697834802,-900.0,0.00013699,2]
[380339804,1755697834811,-900.0,0.00013699,2]
[380339805,1755697834821,-900.0,0.00013699,2]
[380339806,1755697834830,-900.0,0.00013699,2]
[380339807,1755697834839,-900.0,0.00013699,2]
[380339808,1755697834849,-900.0,0.00013699,2]
[380339809,1755697834858,-1000.0,0.00013699,2]
[380339810,1755697834867,-1412.13,0.00014347,2]
[380339811,1755697834876,-195.622,0.00014347,2]
[380339812,1755697834886,-195.542,0.00014347,2]
[380339813,1755697834895,-151.0,0.00014459,2]
[380339814,1755697834904,-151.0,0.00014459,2]
[380339815,1755697834914,-151.0,0.00014459,2]
[380339816,1755697834923,-185.35046447,0.00014459,2]
[380339817,1755697834932,-151.0,0.00014459,2]
[380339818,1755697834946,-151.0,0.00014459,2]
[380339819,1755697834955,-151.0,0.00014459,2]
[380339820,1755697834964,-151.0,0.00014459,2]
[380339821,1755697834973,-151.0,0.00014459,2]
[380339822,1755697834982,-151.0,0.00014459,2]
[380339823,1755697834990,-151.0,0.00014459,2]
[380339824,1755697834999,-151.0,0.00014459,2]
[380339825,1755697835009,-151.0,0.00014459,2]
[380339826,1755697835018,-500.0,0.00014459,2]
[380339827,1755697835028,-155.0,0.00014466,2]
[380339828,1755697835037,-7899.59,0.00014466,2]
[380339829,1755697835047,-2595.25,0.00014467,2]
[380339830,1755697835056,-315.27,0.00014468,2]
[380339831,1755697835066,-1427.51,0.00014468,2]
[380339832,1755697835077,-1000.0,0.00014468,2]
[380339833,1755697835086,-2700.0,0.0001452,2]
[380339834,1755697835099,-255.0,0.00014821,2]
[380339835,1755697835108,-355.47197884,0.00014898,2]
[380339836,1755697835117,-250.0,0.00014898,2]
[380339837,1755697835129,-464.79244305,0.00014898,2]
[380339838,1755697835139,-164.31338392,0.00014898,2]
[380339839,1755697835148,-300.0,0.00014899,2]
[380339840,1755697835157,-151.0,0.00014899,2]
[380339841,1755697835166,-151.0,0.00014899,2]
[380339842,1755697835177,-151.0,0.00014899,2]
[380339843,1755697835188,-151.0,0.00014899,2]
[380339844,1755697835199,-151.0,0.00014899,2]
[380339845,1755697835209,-151.0,0.00014899,2]
[380339846,1755697835218,-151.0,0.00014899,2]
[380339847,1755697835228,-151.0,0.00014899,2]
[380339848,1755697835237,-151.0,0.00014899,2]
[380339849,1755697835247,-151.0,0.00014899,2]
[380339850,1755697835257,-151.0,0.00014899,2]
[380339851,1755697835267,-151.0,0.00014899,2]
[380339852,1755697835277,-721.12765535,0.00014899,2]
[380339853,1755697835286,-277.35679052,0.00014899,2]
[380339854,1755697835296,-9274.81107495,0.00014899,2]
[380339855,1755697835305,-500.0,0.000149,2]
[380339856,1755697835314,-9617.97908473,0.00014954,2]
[380339857,1755697835324,-250.0,0.00015,2]
[380339858,1755697835334,-500.0,0.00015008,2]
[380339859,1755697835343,-2169.46958791,0.00015009,2]
[380339860,1755697835356,-7329.02887253,0.00015009,2]
[380339861,1755697835801,-475.34585042,0.00015009,2]
[380339862,1755697835811,-420.0,0.00015011,2]
[380339863,1755697835821,-126.74557938,0.00015064,2]
[380339864,1755697835834,-10216.13097098,0.00015064,2]
[380339865,1755697835843,-1680.0,0.00015067,2]
[380339866,1755697835853,-10725.56298273,0.00015119,2]
[380339867,1755697835863,-11172.54928769,0.00015174,2]
[380339868,1755697835872,-165.51,0.00015187,2]
[380339869,1755697835882,-165.51,0.00015241,2]
[380339870,1755697835891,-500.0,0.00015282,2]
[380339871,1755697835901,-165.51,0.00015295,2]
[380339872,1755697835909,-165.51,0.00015349,2]
[380339873,1755697835919,-246.76,0.00015357,2]
[380339874,1755697835928,-165.51,0.00015403,2]
[380339875,1755697835938,-200.0,0.00015447,2]
[380339876,1755697835949,-500.0,0.00015556,2]
[380339877,1755697835958,-173.34,0.00015579,2]
[380339878,1755697835967,-1000.0,0.00015579,2]
[380339879,1755697835976,-1191.48,0.00015621,2]
[380339880,1755697835985,-1083.87950513,0.00015809,2]
[380339881,1755697835995,-500.0,0.0001583,2]
[380339882,1755697836004,-300.0,0.00015837,2]
[380339883,1755697836014,-2700.0,0.0001589,2]
[380339884,1755697836023,-126.73321625,0.00015953,2]
[380339885,1755697836043,-36.29678375,0.00015953,2]
[380339886,1755697836052,-170.0,0.00016042,7]
[380339887,1755697836062,-200.0,0.00016091,2]
[380339888,1755697836071,-105.4226747,0.00016104,2]
[380339889,1755697836082,-394.5773253,0.00016104,2]
[380339890,1755697836095,-151.0,0.00016183,2]
[380339891,1755697836104,-151.0,0.00016185,2]
[380339892,1755697836113,-151.0,0.00016186,2]
[380339893,1755697836122,-151.0,0.00016187,2]
[380339894,1755697836133,-500.0,0.00016223,2]
[380339895,1755697836143,-156.36,0.00016242,2]
[380339896,1755697836152,-250.0,0.00016256,2]
[380339897,1755697836162,-287.61899177,0.00016268,2]
[380339898,1755697836172,-315.27,0.00016276,2]
[380339899,1755697836182,-500.0,0.00016378,2]
[380339900,1755697836193,-503.9,0.00016438,2]
[380339901,1755697836202,-666.0,0.00016438,3]
[380339902,1755697836212,-500.0,0.00016438,2]
[380339903,1755697836221,-352.73592393,0.00016438,2]
[380339914,1755697838307,-198.053,0.00014347,2]
[380339915,1755697838317,-247.26407607,0.00016438,2]
[380339916,1755697838326,-600.0,0.00016438,2]
[380339917,1755697838336,-600.0,0.00016438,2]
[380339918,1755697838346,-600.0,0.00016438,2]
[380339919,1755697838355,-600.0,0.00016438,2]
[380339920,1755697838364,-600.0,0.00016438,2]
[380339921,1755697838373,-600.0,0.00016438,2]
[380339922,1755697838383,-600.0,0.00016438,2]
[380339923,1755697838392,-600.0,0.00016438,2]
[380339924,1755697838401,-600.0,0.00016438,2]
[380339925,1755697838410,-600.0,0.00016438,2]
[380339926,1755697838420,-587.0,0.00016451,2]
[380339927,1755697838429,-500.0,0.00016652,2]
[380339928,1755697838441,-800.0,0.00016712,2]
[380339929,1755697838450,-1500.0,0.00016712,2]
[380339930,1755697838459,-503.9,0.00016712,2]
[380339931,1755697838469,-200.0,0.000169,2]
[380339933,1755697838478,-500.0,0.00016926,2]
[380339935,1755697838487,-503.9,0.00016986,2]
[380339936,1755697838496,-300.0,0.00017,2]
[380339937,1755697838506,-500.0,0.00017199,2]
[380339938,1755697838515,-300.0,0.00017207,2]
[380339939,1755697838525,-503.9,0.0001726,2]
[380339940,1755697838534,-2700.0,0.0001726,2]
[380339941,1755697838543,-500.0,0.00017473,2]
[380339942,1755697838553,-1000.0,0.00017527,2]
[380339943,1755697838562,-503.9,0.00017534,2]
[380339944,1755697838571,-1665.0,0.00017586,10]
[380339945,1755697838580,-1711.0,0.0001759,2]
[380339947,1755697838591,-298.26089446,0.00017637,2]
[380339949,1755697838601,-2785.99003227,0.0001764,2]
[380339950,1755697838610,-216.0,0.0001767,2]
[380339951,1755697838620,-1711.0,0.00017708,2]
[380339952,1755697838629,-150.0,0.0001774,2]
[380339953,1755697838638,-150.0,0.0001774,2]
[380339954,1755697838648,-150.0,0.0001774,2]
[380339956,1755697838657,-150.0,0.0001774,2]
[380339957,1755697838667,-151.28685964,0.0001774,2]
[380339958,1755697838676,-150.0,0.0001774,2]
[380339959,1755697838686,-150.0,0.0001774,2]
[380339960,1755697838697,-500.0,0.0001774,2]
[380339961,1755697838707,-150.0,0.0001774,2]
[380339962,1755697838716,-150.0,0.0001774,2]
[380339963,1755697838725,-150.0,0.0001774,2]
[380339964,1755697838735,-150.0,0.0001774,2]
[380339965,1755697838744,-150.51519429,0.0001774,2]
[380339966,1755697838754,-500.0,0.0001774,2]
[380339967,1755697838763,-500.0,0.0001774,2]
[380339968,1755697838772,-150.0,0.0001774,2]
[380339969,1755697838782,-150.0,0.0001774,2]
[380339970,1755697838792,-150.0,0.0001774,2]
[380339971,1755697838801,-150.0,0.0001774,2]
[380339972,1755697838811,-150.0,0.0001774,2]
[380339973,1755697838820,-150.0,0.0001774,2]
[380339974,1755697838829,-150.0,0.0001774,2]
[380339975,1755697838839,-150.0,0.0001774,2]
[380339976,1755697838848,-201.76200709,0.0001774,2]
[380339977,1755697838858,-150.0,0.0001774,2]
[380339978,1755697838869,-500.0,0.00017747,2]
[380339979,1755697838879,-1711.0,0.00017759,2]
[380339980,1755697838890,-1500.0,0.00017808,2]
[380339981,1755697838900,-800.0,0.00017808,2]
[380339982,1755697838909,-503.9,0.00017808,2]
[380339983,1755697838919,-33058.8094118,0.00017883,2]
[380339984,1755697838928,-230.2627,0.000179,2]
[380339985,1755697838937,-1028.4306724,0.00017944,2]
[380339986,1755697838950,-1711.0,0.00017972,2]
[380339987,1755697838959,-2785.99003225,0.0001798,2]
[380339988,1755697838969,-1711.0,0.00017988,2]
[380339989,1755697838978,-2282.73,0.00017998,2]
[380339990,1755697838989,-1711.0,0.00018,2]
[380339991,1755697838998,-216.0,0.00018,2]
[380339992,1755697839007,-216.0,0.00018,2]
[380339993,1755697839017,-216.0,0.00018,2]
[380339994,1755697839026,-216.0,0.00018,2]
[380339995,1755697839035,-216.0,0.00018,2]
[380339996,1755697839045,-159.0,0.00018,2]
[380339997,1755697839055,-200.0,0.00018,2]
[380339998,1755697839064,-24441.26382084,0.00018,2]
[380339999,1755697839074,-500.0,0.00018007,2]
[380340000,1755697839087,-200.0,0.00018007,2]
[380340001,1755697839106,-200.61047825,0.00018014,2]
[380340002,1755697839116,-150.0,0.00018014,2]
[380340003,1755697839126,-201.02158788,0.00018014,2]
[380340004,1755697839135,-200.71265981,0.00018014,2]
[380340005,1755697839144,-150.0,0.00018014,2]
[380340006,1755697839155,-150.0,0.00018014,2]
[380340007,1755697839164,-500.0,0.00018014,2]
[380340008,1755697839174,-200.63655603,0.00018014,2]
[380340009,1755697839184,-202.52248699,0.00018014,2]
[380340010,1755697839196,-201.39214325,0.00018014,2]
[380340011,1755697839206,-150.0,0.00018014,2]
[380340012,1755697839216,-500.0,0.00018014,2]
[380340013,1755697839225,-500.0,0.00018014,2]
[380340014,1755697839234,-200.0,0.00018014,2]
[380340015,1755697839244,-200.0,0.00018014,2]
[380340016,1755697839254,-200.0,0.00018014,2]
[380340017,1755697839263,-150.0,0.00018014,2]
[380340018,1755697839272,-150.0,0.00018014,2]
[380340019,1755697839282,-150.0,0.00018014,2]
[380340020,1755697839291,-200.0,0.00018014,2]
[380340021,1755697839301,-500.0,0.00018021,2]
[380340022,1755697839310,-322.0,0.00018028,2]
[380340023,1755697839320,-10652.42,0.00018036,2]
[380340024,1755697839330,-1711.0,0.00018042,2]
[380340025,1755697839339,-21022.77453159,0.00018046,2]
[380340026,1755697839348,-503.9,0.00018082,2]
[380340027,1755697839358,-880.48719884,0.00018084,2]
[380340028,1755697839367,-315.27,0.00018084,2]
[380340029,1755697839377,-500.0,0.00018086,2]
[380340030,1755697839386,-500.0,0.00018086,2]
[380340031,1755697839395,-500.0,0.00018086,2]
[380340032,1755697839404,-500.0,0.00018086,2]
[380340033,1755697839414,-500.0,0.00018086,2]
[380340034,1755697839423,-500.0,0.00018086,2]
[380340035,1755697839432,-500.0,0.00018086,2]
[380340036,1755697839444,-157.05963202,0.00018105,3]
[380340037,1755697839454,-1711.0,0.00018131,2]
[380340038,1755697839463,-1711.0,0.00018135,2]
[380340039,1755697839473,-216.0,0.0001814,2]
[380340040,1755697839482,-4918.24,0.000182,7]
[380340041,1755697839492,-150.0,0.0001823,2]
[380340042,1755697839502,-150.0,0.00018249,2]
[380340043,1755697839512,-1483.0,0.00018252,2]
[380340044,1755697839521,-150.0,0.00018252,2]
[380340045,1755697839531,-151.47503795,0.00018256,2]
[380340046,1755697839541,-1711.0,0.0001827,2]
[380340047,1755697839551,-150.0,0.00018288,2]
[380340048,1755697839560,-200.0,0.00018288,2]
[380340049,1755697839570,-191.0,0.00018288,2]
[380340050,1755697839579,-500.0,0.00018288,2]
[380340051,1755697839589,-200.79731606,0.00018288,2]
[380340052,1755697839598,-500.0,0.00018288,2]
[380340053,1755697839607,-500.0,0.00018288,2]
[380340054,1755697839617,-200.0,0.00018288,2]
[380340055,1755697839626,-209.0,0.00018288,2]
[380340056,1755697839636,-164.0,0.00018288,2]
[380340057,1755697839646,-1711.0,0.00018288,2]
[380340058,1755697839655,-500.30834101,0.00018291,2]
[380340059,1755697839665,-376.23019821,0.00018291,2]
[380340060,1755697839674,-1711.0,0.00018292,2]
[380340061,1755697839683,-295.9658981,0.00018295,2]
[380340062,1755697839697,-1000.0,0.000183,2]
[380340063,1755697839707,-1960.75058,0.0001831,2]
[380340064,1755697839717,-1711.0,0.0001832,2]
[380340065,1755697839727,-2785.99003225,0.0001832,2]
[380340066,1755697839736,-900.0,0.00018324,2]
[380340067,1755697839746,-2700.0,0.00018356,2]
[380340068,1755697839756,-503.9,0.00018356,2]
[380340069,1755697839766,-25236.68,0.00018356,2]
[380340070,1755697839776,-166.0,0.00018356,2]
[380340071,1755697839786,-166.0,0.00018356,2]
[380340072,1755697839795,-166.0,0.00018356,2]
[380340073,1755697839805,-166.0,0.00018356,2]
[380340074,1755697839814,-500.0,0.0001836,2]
[380340075,1755697839824,-500.0,0.0001836,2]
[380340076,1755697839834,-150.0,0.00018377,2]
[380340077,1755697839845,-1711.0,0.00018389,2]
[380340078,1755697839854,-150.0,0.0001844,2]
[380340079,1755697839864,-150.0,0.00018449,2]
[380340080,1755697839874,-400.0,0.0001847,2]
[380340081,1755697839883,-150.0,0.00018488,2]
[380340082,1755697839893,-610.096702,0.00018497,2]
[380340083,1755697839903,-1669.19423084,0.000185,2]
[380340084,1755697839913,-150.0,0.000185,2]
[380340085,1755697839922,-370.0,0.0001851,2]
[380340086,1755697839932,-2000.0,0.0001852,2]
[380340087,1755697839941,-200.0,0.00018562,2]
[380340088,1755697839955,-500.0,0.00018562,2]
[380340089,1755697839965,-500.0,0.00018562,2]
[380340090,1755697839974,-500.0,0.00018562,2]
[380340091,1755697839983,-152.0,0.00018616,7]
[380340092,1755697839993,-1711.0,0.00018628,2]
[380340093,1755697840002,-503.9,0.0001863,2]
[380340094,1755697840012,-1000.0,0.0001863,2]
[380340096,1755697840021,-1000.0,0.00018634,2]
[380340097,1755697840030,-1000.0,0.00018634,2]
[380340098,1755697840039,-2785.99003225,0.0001866,2]
[380340099,1755697840049,-4491.0,0.0001868,2]
[380340100,1755697840058,-1000.0,0.000187,2]
[380340101,1755697840068,-1711.0,0.0001873,2]
[380340102,1755697840077,-693.61200009,0.00018782,2]
[380340103,1755697840089,-7376.4174383,0.00018793,2]
[380340106,1755697840099,-159.27380131,0.000188,2]
[380340107,1755697840108,-1711.0,0.00018815,2]
[380340108,1755697840116,-4491.0,0.00018815,2]
[380340109,1755697840125,-500.0,0.00018836,2]
[380340110,1755697840136,-500.0,0.00018836,2]
[380340111,1755697840145,-500.0,0.00018836,2]
[380340112,1755697840155,-1711.0,0.00018861,2]
[380340113,1755697840164,-4491.0,0.00018874,2]
[380340115,1755697840174,-2873.67065256,0.00018882,2]
[380340116,1755697840183,-517.30066227,0.000189,2]
[380340118,1755697840196,-517.30066227,0.000189,2]
[380340119,1755697840205,-517.30066227,0.000189,2]
[380340120,1755697840215,-517.30066227,0.000189,2]
[380340121,1755697840224,-517.30066227,0.000189,2]
[380340122,1755697840234,-517.30066227,0.000189,2]
[380340123,1755697840243,-517.30066227,0.000189,2]
[380340124,1755697840253,-517.30066227,0.000189,2]
[380340125,1755697840262,-517.30066227,0.000189,2]
[380340126,1755697840272,-517.30066227,0.000189,2]
[380340127,1755697840281,-517.30066227,0.000189,2]
[380340128,1755697840291,-517.30066227,0.000189,2]
[380340129,1755697840300,-517.30066227,0.000189,2]
[380340130,1755697840309,-517.30066227,0.000189,2]
[380340131,1755697840318,-517.30066227,0.000189,2]
[380340132,1755697840328,-517.30066227,0.000189,2]
[380340133,1755697840338,-517.30066227,0.000189,2]
[380340134,1755697840348,-517.30066227,0.000189,2]
[380340135,1755697840358,-517.30066227,0.000189,2]
[380340136,1755697840369,-517.3,0.000189,2]
[380340137,1755697840379,-1762.9025084,0.000189,2]
[380340138,1755697840388,-1762.9025084,0.000189,2]
[380340139,1755697840398,-1762.9025084,0.000189,2]
[380340140,1755697840407,-1762.9025084,0.000189,2]
[380340141,1755697840416,-1762.9025084,0.000189,2]
[380340142,1755697840426,-1762.9025084,0.000189,2]
[380340143,1755697840435,-1762.9025084,0.000189,2]
[380340144,1755697840447,-1762.9025084,0.000189,2]
[380340145,1755697840457,-1762.9025084,0.000189,2]
[380340146,1755697840469,-1762.9025084,0.000189,2]
[380340147,1755697840478,-1762.9025084,0.000189,2]
[380340148,1755697840487,-1762.9025084,0.000189,2]
[380340149,1755697840497,-1762.9025084,0.000189,2]
[380340150,1755697840506,-1762.9025084,0.000189,2]
[380340151,1755697840516,-1762.9025084,0.000189,2]
[380340152,1755697840525,-1762.9025084,0.000189,2]
[380340153,1755697840535,-1762.9025084,0.000189,2]
[380340154,1755697840544,-1762.9025084,0.000189,2]
[380340155,1755697840553,-1762.9025084,0.000189,2]
[380340156,1755697840563,-1762.9,0.000189,2]
[380340157,1755697840572,-524.4901524,0.000189,2]
[380340158,1755697840581,-1000.0,0.000189,2]
[380340159,1755697840591,-1500.0,0.00018904,2]
[380340160,1755697840600,-800.0,0.00018904,2]
[380340161,1755697840610,-503.9,0.00018904,2]
[380340162,1755697840619,-4491.0,0.00018908,2]
[380340163,1755697840628,-503.43822729,0.00018908,2]
[380340164,1755697840638,-1711.0,0.0001892,2]
[380340165,1755697840648,-1711.0,0.00018951,2]
[380340167,1755697840658,-25000.0,0.0001897,2]
[380340168,1755697840667,-504.02440172,0.00018973,2]
[380340169,1755697840676,-151.47503791,0.00018985,2]
[380340170,1755697840686,-610.096702,0.00018987,2]
[380340171,1755697840699,-2000.0,0.00018989,2]
[380340172,1755697840708,-10652.42,0.0001899,2]
[380340173,1755697840718,-1645.9012043,0.00018996,2]